Workbook

Sheet Sheet1
A4: INSTRUCTIONS: Use this form when a single information collection document involves multiple reporting and recordkeeping requirements. The totals of the figures in cols. should be entered in item 13 of OMB-83-I: cols. (D) &/or (I) = 13a (respondent is only counted once); cols. F & I = 13b; cols. H & K = 13c. (F)Total/(D)Total = (E)Average (H)Total/(F)Total = (G)Average (K)Total/(I)Total = (J)Average NOTE: The columns will calculate automatically. If Col. E's response is something other than annually, i.e., 1/6 years, list as "1/6" & decimal will display. | I4: TITLE OF INFORMATION COLLECTION DOCUMENT | N4: OMB NO.
I6: Rural Community Development Initiative | N6: 0575-0180
N9: DATE PREPARED
N11: 2020-11-16
A13: IDENTIFICATION OF REPORTING OR RECORDKEEPING REQUIREMENT | H13: ANNUAL BURDEN
H15: REPORTS | M15: RECORDS | P15: RESPONDENT COST
O17: TOTAL
G18: FORMS NO (S) | H18: NO. OF | I18: NO OF | J18: TOTAL ANNUAL | K18: HOURS | L18: TOTAL | M18: NO. OF | N18: ANNUAL | O18: RECORD- | P18: COST | Q18: TOTAL
A19: SECTION OF | B19: DESCRIPTION | G19: (If "none" | H19: RESPONDENTS | I19: RESPONSES | J19: RESPONSES | K19: PER | L19: HOURS | M19: RECORD- | N19: HOURS PER | O19: KEEPING HOURS | P19: PER | Q19: COST
A20: NOTICE | G20: so state) | I20: PER | J20: (Col. D x E) | K20: RESPONSE | L20: (Col. F x G) | M20: KEEPERS | N20: RECORD- | O20: (Col. I x J) | P20: HOUR | Q20: (Col. H x L)
I21: RESPONDENT | N21: KEEPER
A22: (A) | B22: (B) | G22: (C) | H22: (D) | I22: (E) | J22: (F) | K22: (G) | L22: (H) | M22: (I) | N22: (J) | O22: (K) | P22: (L) | Q22: (M)
B23: Reporting Requirements - Forms
B24: Assurance Agreement | G24: RD 400-4 | H24: 90 | I24: 1 | J24: =SUM(H24*I24) -> 90 | K24: 0.25 | L24: =SUM(J24*K24) -> 22.5 | O24: =SUM(M24*N24) -> 0 | P24: 30 | Q24: =SUM(L24*P24) -> 675
B25: Statement of Budget, Income and Equity | G25: RD 442-2 | H25: 90 | I25: 1 | J25: 90 | K25: 1.5 | L25: 135 | O25: 0 | P25: 30 | Q25: 4050
B26: Balance Sheet | G26: RD 442-3 | H26: 90 | I26: 1 | J26: 90 | K26: 1 | L26: 90 | O26: 0 | P26: 30 | Q26: 2700
B27: SUBTOTAL | J27: =SUM(J23:J26) -> 270 | L27: =SUM(L23:L26) -> 247.5 | M27: =SUM(M23:M26) -> 0 | O27: =SUM(O23:O26) -> 0 | Q27: =SUM(Q23:Q26) -> 7425
B28: TOTAL OF ALL PAGES | J28: =J27+J57+J64+J91 -> 3130 | L28: =SUM(L27+L57+L64+L91) -> 4193.75 | M28: =SUM(M27+M64+M97+M126+M155+M184+M213+M242+M271+M300+M329+M358+M387+M416+M445+M474+M503+M532+M561+M590+M619+M648+M677+M706+M735+M764+M793+M822+M851+M880+M909+M938+M967+M996+M1025+M1054+M1083+M1112+M1141+M1170+M1199+M1228+M1257+M1286+M1315+M1344+M1373+M1402+M1431+M1460+M1489+M1518+M1547+M1576+M1605+M1634+M1663+M1692+M1721+M1750) -> 0 | O28: =SUM(O27+O64+O97+O126+O155+O184+O213+O242+O271+O300+O329+O358+O387+O416+O445+O474+O503+O532+O561+O590+O619+O648+O677+O706+O735+O764+O793+O822+O851+O880+O909+O938+O967+O996+O1025+O1054+O1083+O1112+O1141+O1170+O1199+O1228+O1257+O1286+O1315+O1344+O1373+O1402+O1431+O1460+O1489+O1518+O1547+O1576+O1605+O1634+O1663+O1692+O1721+O1750) -> 0 | Q28: =SUM(Q27+Q57+Q64+Q91) -> 125812.5
A29: TOTAL - COLUMNS "F" AND "I" = OMB 831, 13 b; COLUMNS "H" AND "K" = OMB 831, 13c | J29: =SUM(J28) -> 3130 | L29: =SUM(L28) -> 4193.75 | Q29: =Q28 -> 125812.5
A33: INSTRUCTIONS: Use this form when a single information collection document involves multiple reporting and recordkeeping requirements. The totals of the figures in cols. should be entered in item 13 of OMB-83-1: cols. (D) &/or (I) = 13a (respondent is only counted once); cols. F & I = 13b; cols. H & K = 13c. (F)Total/(D)Total = (E)Average (H)Total/(F)Total = (G)Average (K)Total/(I)Total = (J)Average NOTE: The columns will calculate automatically. If Col. E's response is something other than annually, i.e., 1/6 years, list as "1/6" & decimal will display. | I33: TITLE OF INFORMATION COLLECTION DOCUMENT | N33: OMB NO.
I35: Rural Community Development Initiative | N35: 0575-0180
N38: DATE PREPARED
N40: Novemer 16, 2020
A42: IDENTIFICATION OF REPORTING OR RECORDKEEPING REQUIREMENT | H42: ANNUAL BURDEN
H44: REPORTS | M44: RECORDS | P44: RESPONDENT COST
O46: TOTAL
G47: FORMS NO (S) | H47: NO. OF | I47: NO OF | J47: TOTAL ANNUAL | K47: HOURS | L47: TOTAL | M47: NO. OF | N47: ANNUAL | O47: RECORD- | P47: COST | Q47: TOTAL
A48: SECTION OF | B48: DESCRIPTION | G48: (If "none" | H48: RESPONDENTS | I48: RESPONSES | J48: RESPONSES | K48: PER | L48: HOURS | M48: RECORD- | N48: HOURS PER | O48: KEEPING HOURS | P48: PER | Q48: COST
A49: NOTICE | G49: so state) | I49: PER | J49: (Col. D x E) | K49: RESPONSE | L49: (Col. F x G) | M49: KEEPERS | N49: RECORD- | O49: (Col. I x J) | P49: HOUR | Q49: (Col. H x L)
I50: RESPONDENT | N50: KEEPER
A51: (A) | B51: (B) | G51: (C) | H51: (D) | I51: (E) | J51: (F) | K51: (G) | L51: (H) | M51: (I) | N51: (J) | O51: (K) | P51: (L) | Q51: (M)
B52: Reporting Requirements - Non-Forms Applicants
B53: Association or Relationship with Rural Development Employees | G53: Written | H53: 75 | I53: 1 | J53: =H53*I53 -> 75 | K53: 0.25 | L53: =SUM(J53*K53) -> 18.75 | O53: =SUM(M53*N53) -> 0 | P53: 30 | Q53: =SUM(L53*P53) -> 562.5
B54: Data Universal Number System (DUNS) and System for Award Management System (SAM) | G54: Written | H54: 75 | I54: 1 | J54: =H54*I54 -> 75 | K54: 0.25 | L54: =J54*K54 -> 18.75 | O54: 0 | P54: 30 | Q54: =L54*P54 -> 562.5
A55: Contents of Application | B55: Certification of Non-Lobbying Activities | G55: Written | H55: 75 | I55: 1 | J55: =SUM(H55*I55) -> 75 | K55: 0.25 | L55: =SUM(J55*K55) -> 18.75 | O55: =SUM(M55*N55) -> 0 | P55: 30 | Q55: =SUM(L55*P55) -> 562.5
B56: Application Narrative | G56: Written | H56: 75 | I56: 1 | J56: =SUM(H56*I56) -> 75 | K56: 10 | L56: =SUM(J56*K56) -> 750 | O56: =SUM(M56*N56) -> 0 | P56: 30 | Q56: =SUM(L56*P56) -> 22500
B57: SUBTOTAL | J57: =J53+J54+J55+J56 -> 300 | L57: =L53+L54+L55+L56 -> 806.25 | Q57: =Q53+Q54+Q55+Q56 -> 24187.5
B58: Reporting Requirements - Non-Forms Awardees/Grantees
A59: Grant Amounts | B59: Modification of Application for Reduced Grant Amount | G59: Written | H59: 20 | I59: 1 | J59: =SUM(H59*I59) -> 20 | K59: 1 | L59: =SUM(J59*K59) -> 20 | O59: =SUM(M59*N59) -> 0 | P59: 30 | Q59: =SUM(L59*P59) -> 600
B60: Performance Progresss Report | G60: Written | H60: 90 | I60: 4 | J60: 360 | K60: 1 | L60: 360 | O60: 0 | P60: 30 | Q60: =SUM(L60*P60) -> 10800
B61: Performance Progresss Report (Final) | G61: Written | H61: 90 | I61: 1 | J61: 90 | K61: 2 | L61: 180 | O61: 0 | P61: 30 | Q61: 5400
B62: Financial Reporting | G62: Written | H62: 90 | I62: 12 | J62: 1080 | K62: 1 | L62: 1080 | O62: 0 | P62: 30 | Q62: =SUM(L62*P62) -> 32400
B63: Financial Management System | G63: Written | H63: 90 | I63: 1 | J63: 90 | K63: 6 | L63: 540 | O63: 0 | P63: 30 | Q63: 16200
B64: SUBTOTAL | J64: =SUM(J59:J63) -> 1640 | L64: =SUM(L59:L63) -> 2180 | M64: =SUM(M59:M63) -> 0 | O64: =SUM(O59:O63) -> 0 | Q64: =SUM(Q59:Q63) -> 65400
A68: INSTRUCTIONS: Use this form when a single information collection document involves multiple reporting and recordkeeping requirements. The totals of the figures in cols. should be entered in item 13 of OMB-83-1: cols. (D) &/or (I) = 13a (respondent is only counted once); cols. F & I = 13b; cols. H & K = 13c. (F)Total/(D)Total = (E)Average (H)Total/(F)Total = (G)Average (K)Total/(I)Total = (J)Average NOTE: The columns will calculate automatically. If Col. E's response is something other than annually, i.e., 1/6 years, list as "1/6" & decimal will display. | I68: TITLE OF INFORMATION COLLECTION DOCUMENT | N68: OMB NO.
I70: Rural Community Development Initiative | N70: 0575-0180
N73: DATE PREPARED
N75: 2020-11-16
A77: IDENTIFICATION OF REPORTING OR RECORDKEEPING REQUIREMENT | H77: ANNUAL BURDEN
H79: REPORTS | M79: RECORDS | P79: RESPONDENT COST
O81: TOTAL
G82: FORMS NO (S) | H82: NO. OF | I82: NO OF | J82: TOTAL ANNUAL | K82: HOURS | L82: TOTAL | M82: NO. OF | N82: ANNUAL | O82: RECORD- | P82: COST | Q82: TOTAL
A83: SECTION OF | B83: DESCRIPTION | G83: (If "none" | H83: RESPONDENTS | I83: RESPONSES | J83: RESPONSES | K83: PER | L83: HOURS | M83: RECORD- | N83: HOURS PER | O83: KEEPING HOURS | P83: PER | Q83: COST
A84: REGS. | G84: so state) | I84: PER | J84: (Col. D x E) | K84: RESPONSE | L84: (Col. F x G) | M84: KEEPERS | N84: RECORD- | O84: (Col. I x J) | P84: HOUR | Q84: (Col. H x L)
I85: RESPONDENT | N85: KEEPER
A86: (A) | B86: (B) | G86: (C) | H86: (D) | I86: (E) | J86: (F) | K86: (G) | L86: (H) | M86: (I) | N86: (J) | O86: (K) | P86: (L) | Q86: (M)
B87: Reporting Req. - Non-Forms Awardees/Grantees cont'd
A88: Contents of Application | B88: Audits (over $750,000) | G88: Written | H88: 20 | I88: 1 | J88: =SUM(H88*I88) -> 20 | K88: 3 | L88: =SUM(J88*K88) -> 60 | O88: =SUM(M88*N88) -> 0 | P88: 30 | Q88: =SUM(L88*P88) -> 1800
B89: Record Keeping Requirement
B90: Data Collection by Race, Sex and National Origin -- Intermediaries - 30 -- Recipients & Beneficiaries- 870 | G90: Written | H90: 900 | I90: 1 | J90: =SUM(H90*I90) -> 900 | K90: 1 | L90: =SUM(J90*K90) -> 900 | O90: =SUM(M90*N90) -> 0 | P90: 30 | Q90: =SUM(L90*P90) -> 27000
B91: SUBTOTAL | J91: =SUM(J88:J90) -> 920 | L91: =SUM(L88:L90) -> 960 | M91: =SUM(M81:M90) -> 0 | O91: =SUM(O81:O90) -> 0 | Q91: =SUM(Q88:Q90) -> 28800
B92: Reporting Req. - Form Burden Approved under other OMB Numbers
A93: Contents of Application | B93: Application for Federal Assistance (Common Form - burden reported under RCF) | G93: SF-424 (4040-0004) | H93: 75 | I93: 1 | J93: 75 | K93: 0.75 | L93: 56.25 | O93: 0 | P93: 30 | Q93: =SUM(L93*P93) -> 1687.5
B94: Disclosure of Lobbying Activities | G94: SF-LLL (4040-0013) | H94: 75 | I94: 1 | J94: =SUM(H94*I94) -> 75 | K94: 0.25 | L94: =SUM(J94*K94) -> 18.75 | O94: =SUM(M94*N94) -> 0 | P94: 30 | Q94: =SUM(L94*P94) -> 562.5
A95: Grantee Req. | B95: Request for Advance or Reimbursement | G95: SF-270 (4040-0012) | H95: 90 | I95: 1 | J95: 90 | K95: 1 | L95: 90 | O95: 0 | P95: 30 | Q95: 2700
B96: Federal Financial Report | G96: SF-425 (4040-0014) | H96: 90 | I96: 4 | J96: 360 | K96: 1 | L96: 360 | O96: 0 | P96: 30 | Q96: 10800
A101: INSTRUCTIONS: Use this form when a single information collection document involves multiple reporting and recordkeeping requirements. The totals of the figures in cols. should be entered in item 13 of OMB-83-1: cols. (D) &/or (I) = 13a (respondent is only counted once); cols. F & I = 13b; cols. H & K = 13c. (F)Total/(D)Total = (E)Average (H)Total/(F)Total = (G)Average (K)Total/(I)Total = (J)Average NOTE: The columns will calculate automatically. If Col. E's response is something other than annually, i.e., 1/6 years, list as "1/6" & decimal will display. | I101: TITLE OF INFORMATION COLLECTION DOCUMENT | N101: OMB NO.
N103: 0563-New
N106: DATE PREPARED
A110: IDENTIFICATION OF REPORTING OR RECORDKEEPING REQUIREMENT | H110: ANNUAL BURDEN
H112: REPORTS | M112: RECORDS | P112: RESPONDENT COST
O114: TOTAL
G115: FORMS NO (S) | H115: NO. OF | I115: NO OF | J115: TOTAL ANNUAL | K115: HOURS | L115: TOTAL | M115: NO. OF | N115: ANNUAL | O115: RECORD- | P115: COST | Q115: TOTAL
A116: SECTION OF | B116: DESCRIPTION | G116: (If "none" | H116: RESPONDENTS | I116: RESPONSES | J116: RESPONSES | K116: PER | L116: HOURS | M116: RECORD- | N116: HOURS PER | O116: KEEPING HOURS | P116: PER | Q116: COST
A117: REGS. | G117: so state) | I117: PER | J117: (Col. D x E) | K117: RESPONSE | L117: (Col. F x G) | M117: KEEPERS | N117: RECORD- | O117: (Col. I x J) | P117: HOUR | Q117: (Col. H x L)
I118: RESPONDENT | N118: KEEPER
A119: (A) | B119: (B) | G119: (C) | H119: (D) | I119: (E) | J119: (F) | K119: (G) | L119: (H) | M119: (I) | N119: (J) | O119: (K) | P119: (L) | Q119: (M)
J120: =SUM(H120*I120) -> 0 | L120: =SUM(J120*K120) -> 0 | O120: =SUM(M120*N120) -> 0 | Q120: =SUM(L120*P120) -> 0
J121: 0 | L121: 0 | O121: 0 | Q121: =SUM(L121*P121) -> 0
J122: 0 | L122: 0 | O122: 0 | Q122: 0
J123: 0 | L123: 0 | O123: 0 | Q123: 0
J124: 0 | L124: 0 | O124: 0 | Q124: 0
J125: 0 | L125: 0 | O125: 0 | Q125: 0
B126: SUBTOTAL | J126: =SUM(J120:J125) -> 0 | L126: =SUM(L120:L125) -> 0 | M126: =SUM(M120:M125) -> 0 | O126: =SUM(O120:O125) -> 0 | Q126: =SUM(Q120:Q125) -> 0
A130: INSTRUCTIONS: Use this form when a single information collection document involves multiple reporting and recordkeeping requirements. The totals of the figures in cols. should be entered in item 13 of OMB-83-1: cols. (D) &/or (I) = 13a (respondent is only counted once); cols. F & I = 13b; cols. H & K = 13c. (F)Total/(D)Total = (E)Average (H)Total/(F)Total = (G)Average (K)Total/(I)Total = (J)Average NOTE: The columns will calculate automatically. If Col. E's response is something other than annually, i.e., 1/6 years, list as "1/6" & decimal will display. | I130: TITLE OF INFORMATION COLLECTION DOCUMENT | N130: OMB NO.
N132: 0563-New
N135: DATE PREPARED
A139: IDENTIFICATION OF REPORTING OR RECORDKEEPING REQUIREMENT | H139: ANNUAL BURDEN
H141: REPORTS | M141: RECORDS
O143: TOTAL
G144: FORMS NO (S) | H144: NO. OF | I144: NO OF | J144: TOTAL ANNUAL | K144: HOURS | L144: TOTAL | M144: NO. OF | N144: ANNUAL | O144: RECORD-
A145: SECTION OF | B145: DESCRIPTION | G145: (If "none" | H145: RESPONDENTS | I145: RESPONSES | J145: RESPONSES | K145: PER | L145: HOURS | M145: RECORD- | N145: HOURS PER | O145: KEEPING HOURS
A146: REGS. | G146: so state) | I146: PER | J146: (Col. D x E) | K146: RESPONSE | L146: (Col. F x G) | M146: KEEPERS | N146: RECORD- | O146: (Col. I x J)
I147: RESPONDENT | N147: KEEPER
A148: (A) | B148: (B) | G148: (C) | H148: (D) | I148: (E) | J148: (F) | K148: (G) | L148: (H) | M148: (I) | N148: (J) | O148: (K)
J149: =SUM(H149*I149) -> 0 | L149: =SUM(J149*K149) -> 0 | O149: =SUM(M149*N149) -> 0
J150: 0 | L150: 0 | O150: 0
J151: 0 | L151: 0 | O151: 0
J152: 0 | L152: 0 | O152: 0
J153: 0 | L153: 0 | O153: 0
J154: 0 | L154: 0 | O154: 0
B155: SUBTOTAL | J155: =SUM(J149:J154) -> 0 | L155: =SUM(L149:L154) -> 0 | M155: =SUM(M149:M154) -> 0 | O155: =SUM(O149:O154) -> 0
A159: INSTRUCTIONS: Use this form when a single information collection document involves multiple reporting and recordkeeping requirements. The totals of the figures in cols. should be entered in item 13 of OMB-83-1: cols. (D) &/or (I) = 13a (respondent is only counted once); cols. F & I = 13b; cols. H & K = 13c. (F)Total/(D)Total = (E)Average (H)Total/(F)Total = (G)Average (K)Total/(I)Total = (J)Average NOTE: The columns will calculate automatically. If Col. E's response is something other than annually, i.e., 1/6 years, list as "1/6" & decimal will display. | I159: TITLE OF INFORMATION COLLECTION DOCUMENT | N159: OMB NO.
N161: 0563-New
N164: DATE PREPARED
A168: IDENTIFICATION OF REPORTING OR RECORDKEEPING REQUIREMENT | H168: ANNUAL BURDEN
H170: REPORTS | M170: RECORDS
O172: TOTAL
G173: FORMS NO (S) | H173: NO. OF | I173: NO OF | J173: TOTAL ANNUAL | K173: HOURS | L173: TOTAL | M173: NO. OF | N173: ANNUAL | O173: RECORD-
A174: SECTION OF | B174: DESCRIPTION | G174: (If "none" | H174: RESPONDENTS | I174: RESPONSES | J174: RESPONSES | K174: PER | L174: HOURS | M174: RECORD- | N174: HOURS PER | O174: KEEPING HOURS
A175: REGS. | G175: so state) | I175: PER | J175: (Col. D x E) | K175: RESPONSE | L175: (Col. F x G) | M175: KEEPERS | N175: RECORD- | O175: (Col. I x J)
I176: RESPONDENT | N176: KEEPER
A177: (A) | B177: (B) | G177: (C) | H177: (D) | I177: (E) | J177: (F) | K177: (G) | L177: (H) | M177: (I) | N177: (J) | O177: (K)
J178: =SUM(H178*I178) -> 0 | L178: =SUM(J178*K178) -> 0 | O178: =SUM(M178*N178) -> 0
J179: 0 | L179: 0 | O179: 0
J180: 0 | L180: 0 | O180: 0
J181: 0 | L181: 0 | O181: 0
J182: 0 | L182: 0 | O182: 0
J183: 0 | L183: 0 | O183: 0
B184: SUBTOTAL | J184: =SUM(J178:J183) -> 0 | L184: =SUM(L178:L183) -> 0 | M184: =SUM(M178:M183) -> 0 | O184: =SUM(O178:O183) -> 0
A188: INSTRUCTIONS: Use this form when a single information collection document involves multiple reporting and recordkeeping requirements. The totals of the figures in cols. should be entered in item 13 of OMB-83-1: cols. (D) &/or (I) = 13a (respondent is only counted once); cols. F & I = 13b; cols. H & K = 13c. (F)Total/(D)Total = (E)Average (H)Total/(F)Total = (G)Average (K)Total/(I)Total = (J)Average NOTE: The columns will calculate automatically. If Col. E's response is something other than annually, i.e., 1/6 years, list as "1/6" & decimal will display. | I188: TITLE OF INFORMATION COLLECTION DOCUMENT | N188: OMB NO.
N190: 0581-
N193: DATE PREPARED
A197: IDENTIFICATION OF REPORTING OR RECORDKEEPING REQUIREMENT | H197: ANNUAL BURDEN
H199: REPORTS | M199: RECORDS
O201: TOTAL
G202: FORMS NO (S) | H202: NO. OF | I202: NO OF | J202: TOTAL ANNUAL | K202: HOURS | L202: TOTAL | M202: NO. OF | N202: ANNUAL | O202: RECORD-
A203: SECTION OF | B203: DESCRIPTION | G203: (If "none" | H203: RESPONDENTS | I203: RESPONSES | J203: RESPONSES | K203: PER | L203: HOURS | M203: RECORD- | N203: HOURS PER | O203: KEEPING HOURS
A204: REGS. | G204: so state) | I204: PER | J204: (Col. D x E) | K204: RESPONSE | L204: (Col. F x G) | M204: KEEPERS | N204: RECORD- | O204: (Col. I x J)
I205: RESPONDENT | N205: KEEPER
A206: (A) | B206: (B) | G206: (C) | H206: (D) | I206: (E) | J206: (F) | K206: (G) | L206: (H) | M206: (I) | N206: (J) | O206: (K)
J207: =SUM(H207*I207) -> 0 | L207: =SUM(J207*K207) -> 0 | O207: =SUM(M207*N207) -> 0
J208: 0 | L208: 0 | O208: 0
J209: 0 | L209: 0 | O209: 0
J210: 0 | L210: 0 | O210: 0
J211: 0 | L211: 0 | O211: 0
J212: 0 | L212: 0 | O212: 0
B213: SUBTOTAL | J213: =SUM(J207:J212) -> 0 | L213: =SUM(L207:L212) -> 0 | M213: =SUM(M207:M212) -> 0 | O213: =SUM(O207:O212) -> 0
A217: INSTRUCTIONS: Use this form when a single information collection document involves multiple reporting and recordkeeping requirements. The totals of the figures in cols. should be entered in item 13 of OMB-83-1: cols. (D) &/or (I) = 13a (respondent is only counted once); cols. F & I = 13b; cols. H & K = 13c. (F)Total/(D)Total = (E)Average (H)Total/(F)Total = (G)Average (K)Total/(I)Total = (J)Average NOTE: The columns will calculate automatically. If Col. E's response is something other than annually, i.e., 1/6 years, list as "1/6" & decimal will display. | I217: TITLE OF INFORMATION COLLECTION DOCUMENT | N217: OMB NO.
N219: 0581-
N222: DATE PREPARED
A226: IDENTIFICATION OF REPORTING OR RECORDKEEPING REQUIREMENT | H226: ANNUAL BURDEN
H228: REPORTS | M228: RECORDS
O230: TOTAL
G231: FORMS NO (S) | H231: NO. OF | I231: NO OF | J231: TOTAL ANNUAL | K231: HOURS | L231: TOTAL | M231: NO. OF | N231: ANNUAL | O231: RECORD-
A232: SECTION OF | B232: DESCRIPTION | G232: (If "none" | H232: RESPONDENTS | I232: RESPONSES | J232: RESPONSES | K232: PER | L232: HOURS | M232: RECORD- | N232: HOURS PER | O232: KEEPING HOURS
A233: REGS. | G233: so state) | I233: PER | J233: (Col. D x E) | K233: RESPONSE | L233: (Col. F x G) | M233: KEEPERS | N233: RECORD- | O233: (Col. I x J)
I234: RESPONDENT | N234: KEEPER
A235: (A) | B235: (B) | G235: (C) | H235: (D) | I235: (E) | J235: (F) | K235: (G) | L235: (H) | M235: (I) | N235: (J) | O235: (K)
J236: =SUM(H236*I236) -> 0 | L236: =SUM(J236*K236) -> 0 | O236: =SUM(M236*N236) -> 0
J237: 0 | L237: 0 | O237: 0
J238: 0 | L238: 0 | O238: 0
J239: 0 | L239: 0 | O239: 0
J240: 0 | L240: 0 | O240: 0
J241: 0 | L241: 0 | O241: 0
B242: SUBTOTAL | J242: =SUM(J236:J241) -> 0 | L242: =SUM(L236:L241) -> 0 | M242: =SUM(M236:M241) -> 0 | O242: =SUM(O236:O241) -> 0
A246: INSTRUCTIONS: Use this form when a single information collection document involves multiple reporting and recordkeeping requirements. The totals of the figures in cols. should be entered in item 13 of OMB-83-1: cols. (D) &/or (I) = 13a (respondent is only counted once); cols. F & I = 13b; cols. H & K = 13c. (F)Total/(D)Total = (E)Average (H)Total/(F)Total = (G)Average (K)Total/(I)Total = (J)Average NOTE: The columns will calculate automatically. If Col. E's response is something other than annually, i.e., 1/6 years, list as "1/6" & decimal will display. | I246: TITLE OF INFORMATION COLLECTION DOCUMENT | N246: OMB NO.
N248: 0581-
N251: DATE PREPARED
A255: IDENTIFICATION OF REPORTING OR RECORDKEEPING REQUIREMENT | H255: ANNUAL BURDEN
H257: REPORTS | M257: RECORDS
O259: TOTAL
G260: FORMS NO (S) | H260: NO. OF | I260: NO OF | J260: TOTAL ANNUAL | K260: HOURS | L260: TOTAL | M260: NO. OF | N260: ANNUAL | O260: RECORD-
A261: SECTION OF | B261: DESCRIPTION | G261: (If "none" | H261: RESPONDENTS | I261: RESPONSES | J261: RESPONSES | K261: PER | L261: HOURS | M261: RECORD- | N261: HOURS PER | O261: KEEPING HOURS
A262: REGS. | G262: so state) | I262: PER | J262: (Col. D x E) | K262: RESPONSE | L262: (Col. F x G) | M262: KEEPERS | N262: RECORD- | O262: (Col. I x J)
I263: RESPONDENT | N263: KEEPER
A264: (A) | B264: (B) | G264: (C) | H264: (D) | I264: (E) | J264: (F) | K264: (G) | L264: (H) | M264: (I) | N264: (J) | O264: (K)
J265: =SUM(H265*I265) -> 0 | L265: =SUM(J265*K265) -> 0 | O265: =SUM(M265*N265) -> 0
J266: 0 | L266: 0 | O266: 0
J267: 0 | L267: 0 | O267: 0
J268: 0 | L268: 0 | O268: 0
J269: 0 | L269: 0 | O269: 0
J270: 0 | L270: 0 | O270: 0
B271: SUBTOTAL | J271: =SUM(J265:J270) -> 0 | L271: =SUM(L265:L270) -> 0 | M271: =SUM(M265:M270) -> 0 | O271: =SUM(O265:O270) -> 0
A275: INSTRUCTIONS: Use this form when a single information collection document involves multiple reporting and recordkeeping requirements. The totals of the figures in cols. should be entered in item 13 of OMB-83-1: cols. (D) &/or (I) = 13a (respondent is only counted once); cols. F & I = 13b; cols. H & K = 13c. (F)Total/(D)Total = (E)Average (H)Total/(F)Total = (G)Average (K)Total/(I)Total = (J)Average NOTE: The columns will calculate automatically. If Col. E's response is something other than annually, i.e., 1/6 years, list as "1/6" & decimal will display. | I275: TITLE OF INFORMATION COLLECTION DOCUMENT | N275: OMB NO.
N277: 0581-
N280: DATE PREPARED
A284: IDENTIFICATION OF REPORTING OR RECORDKEEPING REQUIREMENT | H284: ANNUAL BURDEN
H286: REPORTS | M286: RECORDS
O288: TOTAL
G289: FORMS NO (S) | H289: NO. OF | I289: NO OF | J289: TOTAL ANNUAL | K289: HOURS | L289: TOTAL | M289: NO. OF | N289: ANNUAL | O289: RECORD-
A290: SECTION OF | B290: DESCRIPTION | G290: (If "none" | H290: RESPONDENTS | I290: RESPONSES | J290: RESPONSES | K290: PER | L290: HOURS | M290: RECORD- | N290: HOURS PER | O290: KEEPING HOURS
A291: REGS. | G291: so state) | I291: PER | J291: (Col. D x E) | K291: RESPONSE | L291: (Col. F x G) | M291: KEEPERS | N291: RECORD- | O291: (Col. I x J)
I292: RESPONDENT | N292: KEEPER
A293: (A) | B293: (B) | G293: (C) | H293: (D) | I293: (E) | J293: (F) | K293: (G) | L293: (H) | M293: (I) | N293: (J) | O293: (K)
J294: =SUM(H294*I294) -> 0 | L294: =SUM(J294*K294) -> 0 | O294: =SUM(M294*N294) -> 0
J295: 0 | L295: 0 | O295: 0
J296: 0 | L296: 0 | O296: 0
J297: 0 | L297: 0 | O297: 0
J298: 0 | L298: 0 | O298: 0
J299: 0 | L299: 0 | O299: 0
B300: SUBTOTAL | J300: =SUM(J294:J299) -> 0 | L300: =SUM(L294:L299) -> 0 | M300: =SUM(M294:M299) -> 0 | O300: =SUM(O294:O299) -> 0
A304: INSTRUCTIONS: Use this form when a single information collection document involves multiple reporting and recordkeeping requirements. The totals of the figures in cols. should be entered in item 13 of OMB-83-1: cols. (D) &/or (I) = 13a (respondent is only counted once); cols. F & I = 13b; cols. H & K = 13c. (F)Total/(D)Total = (E)Average (H)Total/(F)Total = (G)Average (K)Total/(I)Total = (J)Average NOTE: The columns will calculate automatically. If Col. E's response is something other than annually, i.e., 1/6 years, list as "1/6" & decimal will display. | I304: TITLE OF INFORMATION COLLECTION DOCUMENT | N304: OMB NO.
N306: 0581-
N309: DATE PREPARED
A313: IDENTIFICATION OF REPORTING OR RECORDKEEPING REQUIREMENT | H313: ANNUAL BURDEN
H315: REPORTS | M315: RECORDS
O317: TOTAL
G318: FORMS NO (S) | H318: NO. OF | I318: NO OF | J318: TOTAL ANNUAL | K318: HOURS | L318: TOTAL | M318: NO. OF | N318: ANNUAL | O318: RECORD-
A319: SECTION OF | B319: DESCRIPTION | G319: (If "none" | H319: RESPONDENTS | I319: RESPONSES | J319: RESPONSES | K319: PER | L319: HOURS | M319: RECORD- | N319: HOURS PER | O319: KEEPING HOURS
... 892 more rows
